Workbook

Sheet Opening Document
B2: UPON OPENING DOCUMENT…
B27: IF THE RED BANNER OCCURS….
B39: 1. DOWNLOAD DOCUMENT AND SAVE TO DESKTOP
B40: 2. RIGHT CLICK, PROPERTIES
B53: 3. CHECK OFF UNBLOCK, CLICK APPLY, CLICK OK
B54: 4. REOPEN EXCEL WORKBOOK
B55: 5. IF NEEDED, ENABLE EDITING, ENABLE CONTENT

Sheet Budget Summary
A2: Attachment A - Budget Worksheet
A19: Commonwealth Project Safe Neighborhood Initiative
A21: Cost Categories | C21: Cash Expenditures
A24: Personnel Costs | C24: ='Budget Detail'!E18 -> 0
A26: Overtime Costs | C26: ='Budget Detail'!E28 -> 0
A28: Fringe Benefit Costs | C28: ='Budget Detail'!E38 -> 0
A30: Consultants and Contractors Costs | C30: ='Budget Detail'!E48 -> 0
A32: Subawards Costs | C32: ='Budget Detail'!E58 -> 0
A34: Travel Costs | C34: ='Budget Detail'!E68 -> 0
A36: Equipment Costs | C36: ='Budget Detail'!E78 -> 0
A38: Supplies Costs | C38: ='Budget Detail'!E88 -> 0
A40: Other Costs | C40: ='Budget Detail'!E98 -> 0
A42: Total Costs | C42: ='Budget Detail'!E100 -> 0
A45: Name of Applicant Organization

Sheet Budget Detail
A1: Executive Office of Public Safety and Security
A2: Office of Grants and Research
A3: Commonwealth Project Safe Neighborhood Initiative
A4: =CONCATENATE("Attachment A - ", 'Budget Summary'!B45) -> Attachment A -
A6: INSTRUCTIONS: This is a macro-enabled document. Please make sure that you read the instructions on the Opening Document tab upon opening this document to make sure that macros are enabled macros. The items marked as Example are only examples, and do not necessarily reflect items in your requested budget. Please note that the subtotals will auto-populate based on the numbers reported within each category. Your requested budget per cost category shall be entered in the rows below the Examples using the "Add" command button to add another row if needed. If you have any questions, please contact the grant manager assigned in the Availability of Grant Funds (AGF) document.
A7: Please read the Availability of Grant Funds (AGF) document. This will outline key dates, funding criteria, allowable and unallowable costs. Cost category definitions are highlighted in the Budget Guidelines tab.
A8: Only a Massachusetts District Attorney’s Office and the Massachusetts State Police are eligible to apply. A District Attorney’s Office may solicit up to $100,000 in funding for this initiative, with a total of $1,100,000 available for all eleven (11) District Attorney Offices. The MSP may submit separate proposals covering different areas of the Commonwealth that they determine to have greatest need, with a total of $800,000 available to MSP. These funds must be prioritized to address the uptick in community violence and drug activity in our neighborhoods. Applicants may utilize funding over a 6-month period from January-June 30, 2025. Since these are state funds, all funds must be obligated prior to June 30, 2025.
A9: Since awards will be disbursed via Interdepartmental Service Agreement (ISA), please indicate what object class will be used for each line item using Column F. Every line item that does not have this action completed will result in a red Column F cell. This will help determine how the ISA Attachment B will be set up as well as how the award will be allocated in MMARS. The totals displayed per object class under the Object Classes tab should reflect how the totals will be displayed on the ISA Attachment B.
A11: PERSONNEL
A13: Employee Name | B13: Pay Rate | C13: Quantity | D13: Description | E13: Cash Expenditures | F13: Object Class
A14: Example: Sue Smith | B14: 23.4875 | C14: 300 | D14: Employee is projected to work a total of 300 hours during the grant at $23.4875/hr. | E14: =IF(B14="","",ROUND(ROUND(B14,4)*ROUND(C14,4),2)) -> 7046.25
A15: Example: Tracey Thomas | B15: 1730.77 | C15: 6 | D15: Please describe duties of Employee here. | E15: =IF(B15="","",ROUND(ROUND(B15,4)*ROUND(C15,4),2)) -> 10384.62 | F15: "AA"
A18: Subtotal: | E18: =SUM(OFFSET(Personnel,5,4):OFFSET(Overtime,-4,4)) -> 0
A21: OVERTIME
A23: Employee Name | B23: Pay Rate | C23: Quantity | D23: Description | E23: Cash Expenditures | F23: Object Class
A24: Example: Sue Smith | B24: 40 | C24: 104 | D24: Advocate worked a total of 104 hours for follow-up investigation of DV cases during the quarter at $40.00/hour. Reporting $2,500 match for S. Smith. | E24: =IF(B24="","",ROUND(ROUND(B24,4)*ROUND(C24,4),2)) -> 4160
A25: Example: Tracey Thomas | B25: 32 | C25: 52 | D25: Please describe duties of Employee here. | E25: =IF(B25="","",ROUND(ROUND(B25,4)*ROUND(C25,4),2)) -> 1664 | F25: "AA"
A28: Subtotal: | E28: =SUM(OFFSET(Overtime,5,4):OFFSET(Fringe,-4,4)) -> 0
A31: FRINGE AND PAYROLL TAX
A33: Employee Name | B33: Wages Applied to Fringe | C33: Contract Fringe Rate | D33: Description | E33: Cash Expenditures | F33: Object Class
A34: Example: Sue Smith | B34: 7046.25 | C34: 0.21 | D34: Per the fringe rate agreement, find the applicable cost categories to apply fringe to. In this example, the applicable cost category is "Personnel." Take Sue Smith's total wages reported on this worksheet under the "Personnel" section and multiply by the federally approved fringe rate or the fringe rate that was proposed and approved by OGR in the application process. ($7,046.25 * 21%). Match expenditures should be in relation to the match in the applicable category. | E34: =IF(B34="","",ROUND(ROUND(B34,4)*ROUND(C34,6),2)) -> 1479.71
A35: Example: Tracey Thomas | B35: 10384.62 | C35: 0.1 | D35: Per the fringe rate agreement, find the applicable cost categories to apply fringe to. In this example, the applicable cost category is "Personnel." Take Tracey Thomas' total wages reported on this worksheet under the "Personnel" section and multiply by the breakout of what rates are being charged per eligible cost. (7.5% - health insurance, 2% - life insurance, .5% - workers compensation). | E35: =IF(B35="","",ROUND(ROUND(B35,4)*ROUND(C35,6),2)) -> 1038.46 | F35: "DD"
E37: =IF(B37="","",ROUND(ROUND(B37,4)*ROUND(C37,8),2)) -> 
A38: Subtotal: | E38: =SUM(OFFSET(Fringe,5,4):OFFSET(Contractors,-4,4)) -> 0
A41: CONSULTANTS AND CONTRACTORS
A43: Company Name/Activity | B43: Pay Rate | C43: Quantity | D43: Description | E43: Cash Expenditures | F43: Object Class
A44: Example: JJ Counseling | B44: 200 | C44: 24 | D44: Counseling of domestic violence survivors; $200 per day x 24 days. Submitting reimbursement for $2,800. | E44: =IF(B44="","",ROUND(ROUND(B44,4)*ROUND(C44,4),2)) -> 4800
A45: Example: JJ Contracting | B45: 45 | C45: 210 | D45: Please provide the names of each Contractor/Consultant and duties/obligations that will be performed here. | E45: =IF(B45="","",ROUND(ROUND(B45,4)*ROUND(C45,4),2)) -> 9450 | F45: "JJ"
A48: Subtotal: | E48: =SUM(OFFSET(Contractors,5,4):OFFSET(Subawards,-4,4)) -> 0
A51: SUBAWARDS (SUBGRANTS)
A53: Subaward Name/Activity | B53: Pay Rate | C53: Quantity | D53: Description | E53: Cash Expenditures | F53: Object Class
A54: Example: JJ Counseling | B54: 200 | C54: 24 | D54: Counseling of domestic violence survivors; $200 per day x 24 days. Submitting reimbursement for $2,800. | E54: =IF(B54="","",ROUND(ROUND(B54,4)*ROUND(C54,4),2)) -> 4800
A55: Example: JJ Subawards | B55: 45 | C55: 210 | D55: Please provide the names of each Subaward and duties/obligations that will be performed here. | E55: =IF(B55="","",ROUND(ROUND(B55,4)*ROUND(C55,4),2)) -> 9450 | F55: "PP"
E56: =IF(B56="","",ROUND(ROUND(B56,4)*ROUND(C56,4),2)) -> 
A58: Subtotal: | E58: =SUM(OFFSET(Subawards,5,4):OFFSET(Travel,-4,4)) -> 0
A61: TRAVEL
A63: Employee Name | B63: Rate | C63: Quantity | D63: Description | E63: Cash Expenditures | F63: Object Class
A64: Example: Sue Smith | B64: 250 | C64: 1 | D64: Gas reimbursement related to grant. | E64: =IF(B64="","",ROUND(ROUND(B64,4)*ROUND(C64,4),2)) -> 250
A65: Example: Tracey Thomas | B65: 0.62 | C65: 500 | D65: Travel related to grant; $0.62/mile x 500 miles | E65: =IF(B65="","",ROUND(ROUND(B65,4)*ROUND(C65,4),2)) -> 310 | F65: "BB"
A68: Subtotal: | E68: =SUM(OFFSET(Travel,5,4):OFFSET(Equipment,-4,4)) -> 0
A71: EQUIPMENT
A73: Equipment | B73: Cost | C73: Quantity | D73: Description | E73: Cash Expenditures | F73: Object Class
A74: Example: Laptop | B74: 1200 | C74: 1 | D74: Please describe purpose of Equipment here. | E74: =IF(B74="","",ROUND(ROUND(B74,4)*ROUND(C74,4),2)) -> 1200 | F74: "UU"
A75: Example: Computer Keyboard | B75: 50 | C75: 3 | D75: Replacement keyboard, IBM part #872021. (3) keyboards at $50/each | E75: =IF(B75="","",ROUND(ROUND(B75,4)*ROUND(C75,4),2)) -> 150
E76: =IF(B76="","",ROUND(ROUND(B76,4)*ROUND(C76,4),2)) -> 
A78: Subtotal: | E78: =SUM(OFFSET(Equipment,5,4):OFFSET(Supplies,-4,4)) -> 0
A81: SUPPLIES
A83: Supplies/Company | B83: Cost | C83: Quantity | D83: Description | E83: Cash Expenditures | F83: Object Class
A84: Example: Copy Paper | B84: 50 | C84: 4 | D84: Please describe purpose of Supplies here. | E84: =IF(B84="","",ROUND(ROUND(B84,4)*ROUND(C84,4),2)) -> 200 | F84: "EE"
A85: Example: ABC Office Supply | B85: 75 | C85: 1 | D85: 1 lot of office supplies (pens, staples, paperclips), $75/lot | E85: =IF(B85="","",ROUND(ROUND(B85,4)*ROUND(C85,4),2)) -> 75
E86: =IF(B86="","",ROUND(ROUND(B86,4)*ROUND(C86,4),2)) -> 
A88: Subtotal: | E88: =SUM(OFFSET(Supplies,5,4):OFFSET(Other,-4,4)) -> 0
A91: OTHER
A93: Item/Company | B93: Cost | C93: Quantity | D93: Description | E93: Cash Expenditures | F93: Object Class
A94: Example: Promotional Printing | B94: 65 | C94: 6 | D94: Please describe purpose of item/activity here. | E94: =IF(B94="","",ROUND(ROUND(B94,4)*ROUND(C94,4),2)) -> 390 | F94: "EE"
A95: Example: Heat | B95: 6000 | C95: 0.25 | D95: Projected total bill for office during grant period is $6,000.00; this program is 1/4 of office space | E95: =IF(B95="","",ROUND(ROUND(B95,4)*ROUND(C95,4),2)) -> 1500
E96: =IF(B96="","",ROUND(ROUND(B96,4)*ROUND(C96,4),2)) -> 
A98: Subtotal: | E98: =SUM(OFFSET(Other,5,4):OFFSET(GrandTotal,-3,4)) -> 0
A100: Grand Total: | E100: =ROUND(SUM(E18+E28+E38+E48+E58+E68+E78+E88+E98),2) -> 0

Sheet Object Classes
A1: Object Classes | B1: Description | C1: Budgeted Totals
A2: AA | B2: State Employee Compensation | C2: =SUMIF('Budget Detail'!F:F,'Object Classes'!A2,'Budget Detail'!E:E) -> 0
A3: BB | B3: State Employee - Related Expenses | C3: =SUMIF('Budget Detail'!F:F,'Object Classes'!A3,'Budget Detail'!E:E) -> 0
A4: CC | B4: Special Employees / Contracted Services | C4: =SUMIF('Budget Detail'!F:F,'Object Classes'!A4,'Budget Detail'!E:E) -> 0
A5: DD | B5: Pension and Insurance - Related Expenditures | C5: =SUMIF('Budget Detail'!F:F,'Object Classes'!A5,'Budget Detail'!E:E) -> 0
A6: EE | B6: Administrative Expenses | C6: =SUMIF('Budget Detail'!F:F,'Object Classes'!A6,'Budget Detail'!E:E) -> 0
A7: FF | B7: Programmatic Facility Operational Supplies and Related Expenses | C7: =SUMIF('Budget Detail'!F:F,'Object Classes'!A7,'Budget Detail'!E:E) -> 0
A8: GG | B8: Energy Costs, Utilities, and Space Rental Expenses | C8: =SUMIF('Budget Detail'!F:F,'Object Classes'!A8,'Budget Detail'!E:E) -> 0
A9: HH | B9: Consultant Service Contracts | C9: =SUMIF('Budget Detail'!F:F,'Object Classes'!A9,'Budget Detail'!E:E) -> 0
A10: JJ | B10: Programmatic Operational Services | C10: =SUMIF('Budget Detail'!F:F,'Object Classes'!A10,'Budget Detail'!E:E) -> 0
A11: KK | B11: Programmatic Equipment Purchase | C11: =SUMIF('Budget Detail'!F:F,'Object Classes'!A11,'Budget Detail'!E:E) -> 0
A12: LL | B12: Programmatic Equipment Tax Exempt Lease - Purchase (TELP), Lease and Rental, Maintenance and Repair | C12: =SUMIF('Budget Detail'!F:F,'Object Classes'!A12,'Budget Detail'!E:E) -> 0
A13: MM | B13: Purchased Client Human and Social Services and Non-Human Services Programs | C13: =SUMIF('Budget Detail'!F:F,'Object Classes'!A13,'Budget Detail'!E:E) -> 0
A14: NN | B14: Horizontal and Vertical Construction, Improvements, Maintenance and Repair Costs, and Land Acquisition | C14: =SUMIF('Budget Detail'!F:F,'Object Classes'!A14,'Budget Detail'!E:E) -> 0
A15: PP | B15: Grants and Subsidies | C15: =SUMIF('Budget Detail'!F:F,'Object Classes'!A15,'Budget Detail'!E:E) -> 0
A16: RR | B16: Entitlement Programs | C16: =SUMIF('Budget Detail'!F:F,'Object Classes'!A16,'Budget Detail'!E:E) -> 0
A17: SS | B17: Debt Payment | C17: =SUMIF('Budget Detail'!F:F,'Object Classes'!A17,'Budget Detail'!E:E) -> 0
A18: TT | B18: Loans and Special Payments | C18: =SUMIF('Budget Detail'!F:F,'Object Classes'!A18,'Budget Detail'!E:E) -> 0
A19: UU | B19: Information Technology Expenses | C19: =SUMIF('Budget Detail'!F:F,'Object Classes'!A19,'Budget Detail'!E:E) -> 0
C20: =SUM(C2:C19) -> 0
